bitfinex-derivatives/quotes_ETHF0:USTF0_20250123
["timestamp","ask_amount","ask_price","bid_price","bid_amount"]
[1737599405058,3.7346,3226.1,3225.9,0.00464792]
[1737599405365,3.7346,3226.1,3225.4,3.2078]
[1737599405366,0.62038,3225.9,3225.4,3.2078]
[1737599405553,0.62038,3225.9,3225.4,3.82826]
[1737599405758,1.0493,3226.0,3225.4,3.82826]
[1737599405965,1.0493,3226.0,3225.4,3.2078]
[1737599406167,0.62038,3225.9,3225.6,0.62043]
[1737599406368,0.6204,3225.8,3225.5,0.62045]
[1737599406870,0.62042,3225.7,3225.4,3.83291792]
[1737599407057,1.05394792,3226.0,3225.4,3.21244792]
[1737599407259,0.62046,3225.5,3225.4,0.00464792]
[1737599408761,0.62053,3225.1,3225.0,40.8]
[1737599409065,3.2078,3225.2,3224.5,3.7044]
[1737599409268,0.62063,3224.6,3224.1,3.82852]
[1737599409570,3.2078,3225.2,3224.1,3.82852]
[1737599409571,0.62056,3225.0,3224.7,0.6206]
[1737599409761,3.2078,3225.2,3224.8,0.4966]
[1737599409762,0.62057,3224.9,3224.8,0.4966]
[1737599409965,0.62056,3225.0,3224.8,0.4966]
[1737599410267,0.62057,3224.9,3224.8,0.4966]
[1737599411665,0.62056,3225.0,3224.8,0.4966]
[1737599411865,0.62057,3224.9,3224.8,0.4966]
[1737599412071,0.5268,3225.1,3224.9,0.62057]
[1737599412370,3.2078,3225.2,3224.8,0.4966]
[1737599412562,1.14736,3225.0,3224.8,0.4966]
[1737599412767,0.62057,3224.9,3224.8,0.4966]
[1737599413265,0.62059,3224.8,3224.7,3.2078]
[1737599413466,0.5268,3225.0,3224.6,0.5319]
[1737599413767,0.62058,3224.9,3224.6,1.15252]
[1737599414066,0.5268,3225.0,3224.6,0.5319]
[1737599414268,0.62061,3224.7,3224.6,0.5319]
[1737599414773,0.5268,3225.0,3224.5,0.00464792]
[1737599414971,0.62063,3224.6,3224.5,0.00464792]
[1737599419571,3.2078,3224.8,3224.5,0.00464792]
[1737599419872,3.2078,3224.8,3224.7,0.62061]
[1737599420569,3.2078,3224.8,3224.5,0.50344792]
[1737599420570,0.5268,3225.0,3224.5,0.50344792]
[1737599420769,0.5268,3225.0,3224.9,0.62057]
[1737599420969,3.2078,3225.2,3225.1,0.62053]
[1737599421571,1.0038,3225.7,3225.1,40.8]
[1737599421775,0.5044,3225.7,3225.6,0.62044]
[1737599422271,3.2078,3225.8,3225.7,0.62042]
[1737599424471,3.2078,3225.8,3225.3,3.2078]
[1737599424680,0.62044,3225.6,3225.4,0.62047]
[1737599425073,3.2078,3225.8,3225.3,3.2078]
[1737599425267,0.62048,3225.4,3225.3,3.2078]
[1737599425472,0.62047,3225.5,3225.3,3.82829]
[1737599425774,3.2078,3225.8,3225.3,3.2078]
[1737599425972,3.2078,3225.8,3225.4,0.62046]
[1737599426174,3.2078,3225.8,3225.6,0.62044]
[1737599426373,3.82821,3225.8,3225.6,0.62044]
[1737599427478,3.2078,3225.8,3225.3,3.7086]
[1737599427673,0.62042,3225.7,3225.5,0.62045]
[1737599428074,0.62048,3225.4,3225.3,3.2078]
[1737599428669,0.62051,3225.3,3225.1,0.62052]
[1737599429582,0.62051,3225.3,3225.1,41.42052]
[1737599430477,0.5313,3225.5,3225.1,40.8]
[1737599430778,0.5104,3225.6,3225.5,0.62046]
[1737599430981,3.2078,3225.8,3225.3,3.2078]
[1737599431185,3.2078,3225.8,3225.7,0.62042]
[1737599433284,0.52854792,3226.0,3225.9,0.62038]
[1737599434379,1.14890792,3226.0,3225.9,0.62038]
[1737599435178,0.00464792,3226.0,3225.9,0.62038]
[1737599436688,0.00464792,3226.0,3225.9,41.42038]
[1737599437084,0.00464792,3226.0,3225.9,41.87573723]
[1737599437877,0.00464792,3226.0,3225.9,41.42038]
[1737599438583,0.9707,3226.8,3226.7,0.62023]
[1737599438584,0.4885,3226.8,3226.7,0.62023]
[1737599438781,3.2078,3226.9,3226.8,0.62021]
[1737599439284,0.62015,3227.2,3227.1,0.62015]
[1737599439677,0.62015,3227.2,3227.0,0.62015]
[1737599439883,0.00464792,3227.5,3226.9,0.5163]
[1737599440079,0.62472792,3227.5,3227.3,0.6201]
[1737599440586,0.00464792,3227.5,3227.0,0.5136]
[1737599440781,0.00464792,3227.5,3227.4,0.62009]
[1737599441278,0.00464792,3227.5,3227.3,0.6201]
[1737599441279,0.62472792,3227.5,3227.3,0.6201]
[1737599441889,0.00464792,3227.5,3227.4,0.62009]
[1737599442186,0.00464792,3227.5,3227.4,41.42009]
[1737599444496,0.00464792,3227.5,3227.4,41.41854475]
[1737599444992,0.00464792,3227.5,3227.2,3.2078]
[1737599445188,0.00464792,3227.5,3227.3,0.6201]
[1737599445387,0.00464792,3227.5,3227.4,0.62009]
[1737599449098,0.00464792,3227.5,3227.2,3.2078]
[1737599449393,0.62011,3227.3,3227.2,3.2078]
[1737599449987,1.5,3227.4,3226.9,41.93648]
[1737599450186,1.5,3227.4,3226.9,41.42018]
[1737599450387,0.62015,3227.2,3226.9,41.42018]
[1737599451091,0.62015,3227.1,3226.9,40.8]
[1737599451300,0.62019,3226.9,3226.8,3.21244792]
[1737599451499,0.62018,3227.0,3226.8,3.83265792]
[1737599452584,0.62018,3227.0,3226.8,3.21244792]
[1737599452790,0.62018,3227.0,3226.8,3.83264792]
[1737599452990,0.62019,3226.9,3226.8,3.21244792]
[1737599453295,0.62024,3226.6,3226.5,40.8]
[1737599453697,0.9978,3226.8,3226.5,40.8]
[1737599454295,0.9978,3226.8,3226.6,0.62023]
[1737599454697,1.61801,3226.8,3226.6,0.62023]
[1737599454895,0.9978,3226.8,3226.7,0.62023]
[1737599455191,0.62016,3227.1,3226.8,0.6202]
[1737599455390,0.62016,3227.1,3226.9,0.62018]
[1737599455587,0.62019,3226.9,3226.7,0.62021]
[1737599456206,3.2078,3227.2,3226.5,41.7919]
[1737599456493,0.62017,3227.0,3226.8,0.6202]
[1737599456902,0.6202,3226.9,3226.6,0.62024]
[1737599457397,1.0252,3226.8,3226.6,0.62024]
[1737599457591,1.0252,3226.8,3226.5,41.7919]
[1737599457592,0.62024,3226.6,3226.5,40.8]
[1737599460498,1.13744,3226.6,3226.5,40.8]
[1737599461791,0.62028,3226.4,3226.3,0.00464792]
[1737599463200,0.5172,3226.6,3226.3,0.00464792]
[1737599463501,0.62028,3226.4,3226.3,0.00464792]
[1737599464907,0.62028,3226.4,3226.3,0.62494792]
[1737599465095,0.5172,3226.6,3226.5,0.62026]
[1737599465803,1.0252,3226.8,3226.3,3.21244792]
[1737599466104,0.62016,3227.1,3227.0,0.62017]
[1737599466501,3.82794,3227.2,3227.0,0.62017]
[1737599466810,3.82794,3227.2,3227.1,0.62015]
[1737599466995,0.62017,3227.1,3226.9,0.62018]
[1737599467301,1.4909,3227.4,3227.0,0.62017]
[1737599467502,0.62015,3227.2,3227.0,0.62016]
[1737599467703,1.4909,3227.4,3226.5,0.4906]
[1737599468103,0.62016,3227.1,3227.0,0.62016]
[1737599468305,1.4909,3227.4,3226.7,3.2078]
[1737599468504,1.4909,3227.4,3227.1,3.2078]
[1737599468706,1.4909,3227.4,3227.2,0.62012]
[1737599468897,1.4909,3227.4,3227.1,3.2078]
[1737599469098,0.00464792,3227.5,3227.1,3.2078]
[1737599469292,0.00464792,3227.5,3227.3,0.6201]
[1737599469604,0.62472792,3227.5,3227.4,40.8]
[1737599470208,0.62472792,3227.5,3227.4,41.42009]
[1737599470706,0.62472792,3227.5,3227.4,40.8]
[1737599470895,0.62013,3227.2,3227.1,3.2078]
[1737599471605,0.6201,3227.4,3227.2,0.62013]
[1737599471806,0.00464792,3227.5,3227.2,0.4994]
[1737599472003,0.00464792,3227.5,3227.4,0.62009]
[1737599472707,0.00464792,3227.5,3227.2,0.4994]
[1737599472907,0.62011,3227.4,3227.2,0.4994]
[1737599473411,0.62472792,3227.5,3227.3,0.62011]
[1737599473607,0.62472792,3227.5,3227.2,0.4994]
[1737599473608,0.00464792,3227.5,3227.2,0.4994]
[1737599473807,0.6201,3227.4,3227.2,0.4994]
[1737599474106,0.6201,3227.4,3227.2,1.11953]
[1737599474403,0.62011,3227.3,3227.2,0.4994]
[1737599475309,0.62472792,3227.5,3227.2,1.11953]
[1737599477207,0.00464792,3227.5,3227.2,1.11953]
[1737599477410,0.62472792,3227.5,3227.2,1.11953]
[1737599478608,0.62472792,3227.5,3227.3,0.62011]
[1737599478809,0.62472792,3227.5,3227.3,40.8]
[1737599479010,0.00464792,3227.5,3227.3,40.8]
[1737599479209,0.00464792,3227.5,3227.3,41.4201]
[1737599479404,0.00464792,3227.5,3227.4,1.12999]
[1737599480507,0.00464792,3227.5,3227.4,41.92999]
[1737599482604,0.00464792,3227.5,3227.2,1.0146]
[1737599482605,0.00464792,3227.5,3227.2,0.4994]
[1737599482910,0.62013,3227.2,3227.1,3.2078]
[1737599483411,0.00464792,3227.5,3227.4,0.62009]
[1737599487109,0.00464792,3227.5,3227.4,1.07556229]
[1737599487308,0.00464792,3227.5,3227.4,1.418367]
[1737599487918,0.00464792,3227.5,3227.4,1.87879121]
[1737599489019,0.00464792,3227.5,3227.4,1.8787286]
[1737599489317,0.00464792,3227.5,3227.4,42.6787286]
[1737599489918,0.00464792,3227.5,3227.4,42.21830439]
[1737599490813,0.00464792,3227.5,3227.4,42.21830618]
[1737599491120,0.00464792,3227.5,3227.4,41.87556229]
[1737599491814,0.00464792,3227.5,3227.4,42.67892031]
[1737599492014,0.00464792,3227.5,3227.4,42.22344802]
[1737599492211,0.00464792,3227.5,3227.4,42.22345144]
[1737599493221,0.00464792,3227.5,3227.4,47.22345144]
[1737599493730,0.00464792,3227.5,3227.4,48.40835719]
[1737599493911,1.0028,3228.2,3227.4,47.78826719]
[1737599494109,1.0028,3228.2,3228.0,0.61998]
[1737599494316,1.62274,3228.2,3228.0,0.61998]
[1737599495913,1.62275,3228.2,3228.0,0.61998]
[1737599496413,1.0028,3228.2,3228.1,0.61996]
[1737599496712,1.62275,3228.2,3228.0,1.10726]
[1737599497513,0.61996,3228.1,3228.0,0.4873]
[1737599497916,0.61998,3228.0,3227.9,3.2078]
[1737599499814,0.62007,3227.5,3227.4,40.8]
[1737599500016,4.75777,3228.0,3226.9,3.6978]
[1737599500215,0.4879,3227.4,3227.0,0.80488875]
[1737599500415,0.4879,3227.4,3227.1,0.62014]
[1737599500623,0.62013,3227.2,3227.1,1.07651711]
[1737599501028,0.62013,3227.2,3227.1,40.8]
[1737599501820,0.62012,3227.3,3227.1,41.42015]
[1737599502123,0.4879,3227.4,3227.1,40.8]
[1737599502335,0.62013,3227.2,3227.1,40.8]
[1737599503224,0.62017,3227.0,3226.9,3.2078]
[1737599503424,0.62017,3227.0,3226.9,3.68195769]
[1737599503626,0.62017,3227.0,3226.9,3.2078]
[1737599505322,0.62017,3227.0,3226.5,3.2078]
[1737599505323,0.62024,3226.6,3226.5,3.2078]
[1737599505726,0.62024,3226.6,3226.5,44.0078]
[1737599507232,0.62024,3226.6,3226.3,0.00464792]
[1737599507233,0.62028,3226.4,3226.3,0.00464792]
[1737599507529,0.62042,3225.7,3225.6,3.2078]
[1737599508329,0.62042,3225.7,3225.4,4.85138668]
[1737599508330,0.62046,3225.5,3225.4,4.85138668]
[1737599508824,0.62046,3225.5,3225.3,0.00464792]
[1737599508825,0.62048,3225.4,3225.3,0.00464792]
[1737599509026,0.62048,3225.4,3225.3,40.80464792]
[1737599509523,0.62048,3225.4,3225.3,0.00464792]
[1737599512127,0.62048,3225.4,3224.9,4.85138668]
[1737599512128,5.0,3225.4,3224.9,4.85138668]
[1737599512328,0.62061,3224.7,3224.2,0.6207]
[1737599513434,3.2078,3224.7,3224.3,0.00464792]
[1737599513642,0.5002,3224.6,3224.3,0.00464792]
[1737599513933,0.62067,3224.5,3224.3,0.00464792]
[1737599514534,0.62065,3224.5,3224.3,0.00464792]
[1737599518347,0.5002,3224.6,3224.3,0.00464792]
[1737599518556,0.62056,3225.0,3224.6,0.62062]
[1737599518852,0.62056,3225.0,3224.4,40.8]
[1737599518853,0.62056,3225.0,3224.7,0.6206]
[1737599519751,3.2078,3225.1,3224.9,0.62056]
[1737599520952,3.82835,3225.1,3224.6,0.4891]
[1737599521247,3.2078,3225.1,3224.6,0.4891]
[1737599521457,0.62065,3224.5,3224.4,40.8]
[1737599521955,3.2078,3225.1,3224.3,3.21244792]
[1737599522152,0.62067,3224.4,3224.3,0.00464792]
[1737599524349,5.62067,3224.4,3224.3,0.00464792]
[1737599524551,0.6208,3223.7,3223.6,40.8]
[1737599524848,3.2078,3224.0,3223.5,3.2078]
[1737599525045,1.12722,3223.6,3223.5,3.2078]
[1737599525246,0.62094,3223.1,3222.9,3.82875]
[1737599525456,3.7142,3223.6,3222.3,3.2078]
[1737599525457,3.2078,3223.2,3222.3,3.2078]
[1737599525644,0.62099,3222.8,3222.7,0.00464792]
[1737599527555,3.82879,3222.8,3222.7,0.00464792]
[1737599527956,0.62112,3222.1,3221.8,0.62116]
[1737599528149,0.62112,3222.1,3221.7,3.2078]
[1737599528150,0.492,3222.7,3221.7,3.2078]
[1737599528350,3.2078,3222.4,3221.7,3.2078]
[1737599528957,0.62123,3221.5,3220.9,0.9669]
[1737599529151,3.2078,3221.8,3221.7,0.0031416]
[1737599529356,3.82897,3221.8,3221.7,0.0031416]
[1737599530245,8.2078,3221.8,3220.8,3.2078]
[1737599530444,0.62134,3220.9,3220.8,3.2078]
[1737599530655,0.62134,3220.9,3220.5,0.62141]
[1737599530656,3.2078,3221.3,3220.5,3.2078]
[1737599530952,3.2078,3221.3,3220.6,40.8]
[1737599531149,0.62137,3220.8,3220.6,40.8]
[1737599531354,3.2078,3221.3,3220.6,40.8]
[1737599531561,3.2078,3220.9,3220.1,8.05918668]
[1737599531769,0.25322696,3222.0,3220.1,8.05918668]
[1737599531770,0.62148,3220.2,3220.1,4.85138668]
[1737599532259,5.0,3220.2,3220.0,7.27708002]
[1737599532563,3.2078,3220.5,3220.0,6.61488462]
[1737599532564,3.8293,3220.1,3220.0,6.61488462]
[1737599532964,3.8293,3220.1,3219.1,3.2078]
[1737599532965,3.2078,3220.1,3219.1,3.2078]
[1737599533262,3.2078,3220.1,3219.6,0.62159]
[1737599533468,3.2078,3220.1,3219.9,0.62153]
[1737599533660,3.2078,3220.1,3219.8,0.62155]
[1737599534260,3.2078,3220.1,3219.7,0.9845]
[1737599535065,0.62155,3219.9,3219.7,0.9845]
[1737599535266,3.2078,3220.1,3219.5,3.2078]
[1737599535460,3.2078,3220.1,3219.6,0.9859]
[1737599535967,3.8293,3220.1,3219.6,0.9859]
[1737599536560,0.62152,3220.0,3219.6,0.9859]
[1737599536758,3.2078,3220.1,3219.6,0.9859]
[1737599537066,0.62153,3220.0,3219.6,0.9859]
[1737599537461,3.2078,3220.1,3219.6,0.9859]
[1737599537661,0.62152,3220.0,3219.6,0.9859]
[1737599538157,0.62154,3219.9,3219.6,0.9859]
[1737599538354,0.62154,3219.9,3219.7,40.8]
[1737599538565,0.62155,3219.8,3219.7,40.8]
[1737599538965,3.2078,3220.1,3219.7,40.8]
[1737599539164,3.82931,3220.1,3219.7,41.42157]
[1737599539863,3.2078,3220.1,3219.7,40.8]
[1737599540060,3.2078,3220.1,3219.8,0.62155]
[1737599540374,3.2078,3220.1,3219.7,40.8]
[1737599540375,0.62155,3219.8,3219.7,40.8]
[1737599540761,3.2078,3220.1,3219.7,40.8]
[1737599540964,0.62152,3220.0,3219.7,40.8]
[1737599541367,3.2078,3220.1,3219.7,40.8]
[1737599541672,0.62145,3220.4,3220.0,0.62151]
[1737599542763,0.00465557,3220.5,3220.0,3.2078]
[1737599542970,0.00465557,3220.5,3220.1,0.6215]
[1737599543264,0.00465557,3220.5,3220.3,0.62146]
[1737599543457,0.00465557,3220.5,3220.2,0.62147]
[1737599544059,0.00465557,3220.5,3219.7,40.8]
[1737599544465,0.62144,3220.4,3219.8,0.62155]
[1737599544770,0.6215,3220.1,3219.7,44.62937]
[1737599544971,0.4147515,3220.6,3219.8,0.00465557]
[1737599545172,0.62153,3220.0,3219.8,0.00465557]
[1737599546166,0.00465557,3220.2,3219.8,0.62620557]
[1737599546371,0.62153,3220.0,3219.8,0.00465557]
[1737599547972,0.00465557,3220.2,3219.8,0.62620557]
[1737599547973,0.6215,3220.1,3219.8,0.62620557]
[1737599548177,0.6215,3220.1,3219.8,0.62619557]
[1737599548775,0.6215,3220.1,3219.8,0.00465557]
[1737599549170,0.62154,3219.9,3219.8,0.00465557]
[1737599550376,0.62153,3220.0,3219.8,0.00465557]
[1737599550572,0.62154,3219.9,3219.8,0.00465557]
[1737599550973,5.62154,3219.9,3219.8,0.00465557]
[1737599551973,0.62154,3219.9,3219.8,0.00465557]
[1737599553974,3.21245557,3220.2,3219.8,0.00465557]
[1737599554380,0.62154,3219.9,3219.8,0.00465557]
[1737599555379,3.83394557,3220.2,3220.0,0.6215]
[1737599555684,3.83394557,3220.2,3220.1,0.46158647]
[1737599556280,0.62614557,3220.2,3220.1,1.65082874]
[1737599556578,0.62614557,3220.2,3220.1,0.91144055]
[1737599556977,0.62614557,3220.2,3219.8,0.50235557]
[1737599556978,0.62154,3219.9,3219.8,0.50235557]
[1737599557280,0.62154,3219.9,3219.8,2.49216069]
[1737599557487,0.62152,3220.0,3219.8,2.49216069]
[1737599557680,0.62152,3220.0,3219.9,1.54456168]
[1737599557882,0.62152,3220.0,3219.9,1.98980512]
[1737599558483,0.62152,3220.0,3219.9,0.44524344]
[1737599558677,0.62154,3219.9,3219.8,0.00465557]
[1737599558873,0.62154,3219.9,3219.8,0.79394046]
[1737599559074,3.82934,3219.9,3219.8,0.45048509]
[1737599559670,8.2078,3219.9,3219.2,3.2078]
[1737599559871,0.62165,3219.3,3219.2,3.2078]
[1737599560081,0.62165,3219.3,3219.2,3.55155013]
[1737599560381,0.62165,3219.3,3219.2,0.34375013]
[1737599560686,0.62177,3218.7,3218.6,44.0078]
[1737599560877,0.62177,3218.7,3218.6,44.35172419]
[1737599561184,0.62177,3218.7,3218.6,44.79103785]
[1737599561379,0.62177,3218.7,3218.6,3.99103785]
[1737599562380,0.62177,3218.7,3218.6,0.43931366]
[1737599562681,0.62192,3217.9,3217.8,3.2078]
[1737599562879,0.62192,3217.9,3217.8,44.35146282]
[1737599563078,0.6219,3218.1,3217.8,44.97339282]
[1737599563278,0.62192,3218.0,3217.9,0.34366282]
[1737599563584,0.6219,3218.0,3217.9,0.343326]
[1737599563979,0.00465557,3218.2,3217.5,0.9973]
[1737599564287,0.62196,3217.7,3217.6,0.34333633]
[1737599564580,1.55932557,3218.2,3216.9,3.2078]
[1737599564789,0.62207,3217.2,3217.0,0.34304319]
[1737599564974,0.62207,3217.2,3217.1,0.34304319]
[1737599565277,0.6221,3217.0,3216.9,3.2078]
[1737599568291,0.4955,3217.6,3216.9,3.2078]
[1737599568589,0.62208,3217.1,3217.0,40.8]
[1737599568784,0.62205,3217.3,3217.0,40.8]
[1737599569381,3.2078,3217.7,3217.0,40.8]
[1737599569685,0.62202,3217.4,3217.1,0.62208]
[1737599569878,0.62196,3217.8,3217.4,0.62201]
[1737599570079,0.62193,3217.9,3217.5,0.5218]
[1737599570280,0.6219,3218.1,3217.5,0.5218]
[1737599570490,0.6219,3218.1,3217.8,0.62193]
[1737599571090,0.62651557,3218.2,3217.9,0.62191]
[1737599571289,0.62651557,3218.2,3217.8,0.5199]
[1737599571290,0.00465557,3218.2,3218.1,3.2078]
[1737599571988,0.00465557,3218.2,3218.1,3.82968]
[1737599573584,0.00465557,3218.2,3218.1,3.2078]
[1737599573786,0.62651557,3218.2,3218.1,3.2078]
[1737599573986,3.21245557,3218.2,3217.5,0.5218]
[1737599574180,0.62206,3217.2,3217.1,0.4894]
[1737599575087,3.2078,3217.6,3217.1,0.4894]
[1737599575287,0.62202,3217.5,3217.2,0.62206]
[1737599575495,0.62195,3217.8,3217.2,40.8]
[1737599575794,0.62193,3217.9,3217.6,0.62197]
[1737599576184,0.00465557,3218.2,3217.8,3.2078]
[1737599576391,0.00465557,3218.2,3218.1,0.62188]
[1737599576892,1.5541,3219.4,3218.1,0.62188]
[1737599576893,0.62184,3218.4,3218.1,41.42187]
[1737599577089,0.62183,3218.4,3218.3,3.2078]
[1737599577392,0.62182,3218.5,3218.1,41.42186]
[1737599577889,3.2078,3219.1,3218.1,40.8]
[1737599578090,0.00465557,3218.6,3218.1,40.8]
[1737599578291,0.62186,3218.3,3218.1,40.8]
[1737599578685,0.62644557,3218.6,3218.3,0.62183]
[1737599578893,0.00465557,3218.6,3218.4,1.10022]
[1737599579091,0.00465557,3218.6,3218.4,0.4784]
[1737599579400,0.62181,3218.5,3218.4,0.4784]
[1737599579696,0.62184,3218.3,3218.2,3.2078]
[1737599579895,0.62188,3218.1,3218.0,0.00465557]
[1737599582103,5.62188,3218.1,3218.0,0.00465557]
[1737599582399,0.62188,3218.1,3218.0,0.00465557]
[1737599584697,5.62188,3218.1,3218.0,0.00465557]
[1737599585295,0.62188,3218.1,3218.0,0.00465557]
[1737599586202,0.00465557,3218.6,3218.4,0.62182]
[1737599586403,0.62644557,3218.6,3218.5,1.006]
[1737599586900,0.62644557,3218.6,3218.5,41.806]
[1737599587291,0.62644557,3218.6,3218.5,1.006]
[1737599587704,0.00465557,3218.6,3218.1,40.8]
[1737599588009,0.62186,3218.2,3218.1,40.8]
[1737599588307,0.00465557,3218.6,3218.1,40.8]
[1737599588513,0.62186,3218.3,3218.1,40.8]
[1737599588706,0.62186,3218.3,3218.1,41.42188]
[1737599588907,0.00465557,3218.6,3218.1,41.42188]
[1737599588908,0.62182,3218.5,3218.2,3.2078]
[1737599589101,0.62182,3218.5,3218.3,0.62184]
[1737599589304,0.00465557,3218.6,3218.2,3.2078]
[1737599589305,0.62183,3218.4,3218.2,3.2078]
[1737599589610,0.00465557,3218.6,3218.5,0.62181]
[1737599590498,0.62173,3219.0,3218.7,0.62175]
[1737599590716,1.5538,3220.1,3218.8,0.5175]
[1737599590906,0.62162,3219.5,3219.3,0.62163]
[1737599591211,0.62167,3219.3,3219.1,0.62168]
[1737599591401,0.62163,3219.4,3219.2,0.62166]
[1737599593013,0.62168,3219.2,3219.0,3.8295]
[1737599593312,0.00465557,3219.5,3219.4,0.62163]
[1737599593907,0.62626557,3219.5,3219.2,0.4966]
[1737599594317,0.00465557,3219.5,3219.4,0.62163]
[1737599594708,0.00465557,3219.5,3219.2,0.4966]
[1737599594908,0.62164,3219.4,3219.2,1.11826]
[1737599595413,0.62165,3219.3,3219.2,0.4966]
[1737599596918,0.61837274,3219.3,3219.2,0.4966]
[1737599600116,0.00465557,3219.5,3219.2,0.4966]
[1737599600317,0.62628557,3219.5,3219.2,1.11825]
[1737599600520,0.62627557,3219.5,3219.2,1.11825]
[1737599600722,0.62627557,3219.5,3219.3,3.2078]
[1737599600914,0.00465557,3219.5,3219.2,0.4966]
[1737599601114,0.62163,3219.4,3219.2,0.4966]
[1737599601319,0.62165,3219.3,3219.2,0.4966]
[1737599604818,0.00465557,3219.5,3219.2,0.4966]
[1737599605127,0.00465557,3219.5,3219.4,0.62163]
[1737599605523,0.00465557,3219.5,3219.3,3.2078]
[1737599605725,0.00465557,3219.5,3219.4,0.62163]
[1737599606922,0.00465557,3219.5,3219.4,41.42163]
[1737599608228,0.6215,3220.1,3219.9,0.62153]
[1737599608521,3.2078,3220.2,3220.0,0.5124]
[1737599608723,0.4814,3220.6,3220.0,0.5124]
[1737599608926,0.62147,3220.3,3220.0,1.1339]
[1737599609123,0.5037,3220.8,3220.0,0.5124]
[1737599609329,0.62608557,3220.5,3220.3,3.82925]
[1737599609525,0.62608557,3220.5,3220.3,0.62145]
[1737599609827,0.00465557,3220.5,3220.4,0.62144]
[1737599610217,0.62133,3221.0,3220.8,0.62135]
[1737599610419,0.62117,3221.8,3221.2,0.62128]
[1737599610613,0.05244508,3221.7,3221.3,3.2078]
[1737599610819,0.62127,3221.3,3221.1,0.6213]
[1737599611018,0.62127,3221.3,3221.2,40.8]
[1737599611221,1.55319,3221.3,3220.7,3.2078]
[1737599611422,0.62142,3220.5,3220.3,1.11105]
[1737599611625,0.6214,3220.6,3220.4,0.62143]
[1737599611821,0.62139,3220.7,3220.5,0.62141]
[1737599612129,0.62144,3220.4,3220.3,0.4896]
[1737599612426,1.55328,3221.1,3220.0,3.2078]
[1737599612427,3.2078,3221.0,3220.0,3.2078]
[1737599612623,0.6215,3220.1,3220.0,3.2078]
[1737599615227,0.62147,3220.3,3220.0,3.2078]
[1737599615531,0.62148,3220.2,3220.0,3.82931]
[1737599615921,0.62145,3220.4,3220.2,0.62148]
[1737599616122,0.62144,3220.5,3220.0,3.2078]
[1737599616331,0.5235,3220.8,3220.2,0.62146]
[1737599616633,0.62145,3220.4,3220.2,0.62146]
[1737599616829,0.62142,3220.6,3220.0,3.2078]
[1737599617026,0.62139,3220.7,3220.5,0.62142]
[1737599617729,0.62139,3220.7,3220.5,41.42142]
[1737599617935,0.4858,3221.1,3220.5,40.8]
[1737599618128,0.4858,3221.1,3220.6,0.5137]
[1737599618330,0.62138,3220.7,3220.6,0.5137]
[1737599618932,0.62138,3220.7,3220.6,1.1351]
[1737599619136,0.62135,3220.9,3220.7,0.62137]
[1737599619729,3.7294,3221.5,3220.6,1.0139]
[1737599619938,3.82904,3221.5,3221.3,0.62126]
[1737599620126,3.2078,3221.5,3220.8,3.2078]
[1737599620331,0.62126,3221.4,3221.2,0.62128]
[1737599620839,0.62128,3221.3,3221.1,0.6213]
[1737599621130,0.62127,3221.3,3221.1,0.6213]
[1737599621332,3.2078,3221.5,3220.8,3.2078]
[1737599621537,0.62134,3220.9,3220.8,3.2078]
[1737599624338,0.62132,3221.1,3220.9,0.62133]
[1737599624543,3.2078,3221.5,3220.8,3.2078]
[1737599624842,0.62132,3221.0,3220.8,3.82915]
[1737599625346,0.62134,3220.9,3220.8,3.2078]
[1737599625642,3.2078,3221.5,3220.8,3.2078]
[1737599625839,0.62131,3221.1,3220.9,0.62134]
[1737599626343,0.62125,3221.4,3221.2,0.62127]
[1737599626540,3.82904,3221.5,3221.3,1.09855]
[1737599627042,0.62125,3221.4,3221.3,0.4773]
[1737599628335,0.62125,3221.4,3221.3,40.8]
[1737599628535,3.2078,3221.5,3220.9,0.4773]
[1737599628936,0.62126,3221.4,3221.2,0.62128]
[1737599629132,0.62126,3221.4,3221.2,41.42128]
[1737599629338,0.62127,3221.3,3221.2,40.8]
[1737599629544,0.62126,3221.4,3221.2,41.42127]
[1737599630136,3.2078,3221.5,3221.2,40.8]
[1737599630337,3.2078,3221.5,3221.4,0.62125]
[1737599630547,0.62118,3221.8,3221.5,0.62123]
[1737599630743,0.62116,3221.9,3221.5,0.62123]
[1737599630936,1.55274,3222.2,3221.3,3.7023]
[1737599631139,0.62123,3221.5,3221.4,0.62124]
[1737599631543,0.62587557,3221.6,3221.5,0.62123]
[1737599631738,0.62587557,3221.6,3221.4,0.62124]
[1737599632446,0.00465557,3221.6,3221.4,0.62125]
[1737599632641,0.62587557,3221.6,3221.4,0.62124]
[1737599632950,0.00465557,3221.6,3221.3,3.7023]
[1737599633145,0.62125,3221.4,3221.3,3.7023]
[1737599633446,0.62125,3221.4,3221.3,4.32357]
[1737599633647,0.62125,3221.4,3221.3,3.2078]
[1737599633848,0.00465557,3221.6,3221.3,3.2078]
[1737599634043,0.62123,3221.5,3221.3,3.2078]
[1737599634245,0.62123,3221.5,3221.4,0.62125]
[1737599634643,0.62587557,3221.6,3221.4,0.62125]
[1737599634949,0.00465557,3221.6,3221.3,3.2078]
[1737599635150,0.62124,3221.5,3221.3,3.82905]
[1737599635353,0.62587557,3221.6,3221.4,0.62124]
[1737599635945,0.62124,3221.5,3221.3,3.2078]
[1737599636640,0.62587557,3221.6,3221.3,3.2078]
[1737599636850,0.00465557,3221.6,3221.4,0.62123]
[1737599637044,0.62586557,3221.6,3221.4,0.62123]
[1737599637249,0.62586557,3221.6,3221.3,3.2078]
[1737599637450,0.62586557,3221.6,3221.5,0.62123]
[1737599637650,0.00465557,3221.6,3221.5,0.62123]
[1737599640054,0.00465557,3221.6,3221.5,0.96422899]
[1737599641762,0.00465557,3221.6,3221.3,3.2078]